fUSD/lending_fUSD_20240216
["ID","MTS","AMOUNT","RATE_DAILY","PERIOD"]
[314198155,1708068631900,-23900.0,0.00033112,2]
[314198156,1708068631910,-200.0,0.0003317,2]
[314198157,1708068631919,-154.03343787,0.00033296,2]
[314198158,1708068631929,-213.68,0.00033344,2]
[314198159,1708068631939,-195.73,0.00033371,2]
[314198160,1708068631952,-730.5,0.00033442,2]
[314198161,1708068631962,-1111.04,0.00033572,2]
[314198162,1708068631972,-399.98,0.0003364,2]
[314198163,1708068631981,-2000.0,0.00033766,2]
[314198164,1708068631991,-180.13,0.00033867,2]
[314198165,1708068632003,-250.0,0.00034351,111]
[314198166,1708068632013,-467.08,0.00034608,2]
[314198167,1708068632022,-260.18,0.00034701,2]
[314198168,1708068632031,-467.08,0.00034703,2]
[314198169,1708068632041,-1889.27771131,0.00034707,2]
[314198170,1708068632050,-154.03343787,0.00034711,2]
[314198171,1708068632060,-164.45,0.00034714,2]
[314198172,1708068632069,-467.08,0.00034798,2]
[314198173,1708068632079,-467.08,0.00034893,2]
[314198174,1708068632088,-1932.0,0.000349,3]
[314198175,1708068632098,-7903.089,0.000349,2]
[314198176,1708068632107,-1154.10980387,0.00034974,4]
[314198177,1708068632116,-162.19176596,0.00034983,2]
[314198178,1708068632125,-467.08,0.00034988,2]
[314198179,1708068632135,-23574.59894927,0.00035,4]
[314198180,1708068632144,-174861.65350721,0.00035,2]
[314198181,1708068632153,-88001.73999539,0.00035,4]
[314198182,1708068632163,-467.08,0.00035083,2]
[314198183,1708068632172,-467.08,0.00035178,2]
[314198184,1708068632181,-707.54746584,0.00035182,10]
[314198185,1708068632191,-300.88735998,0.00035182,10]
[314198186,1708068632200,-250.16596599,0.00035182,10]
[314198187,1708068632209,-467.08,0.00035273,2]
[314198188,1708068632218,-467.08,0.00035368,2]
[314198189,1708068632227,-467.08,0.00035462,2]
[314198190,1708068632237,-467.08,0.00035557,2]
[314198191,1708068632248,-467.08,0.00035652,2]
[314198192,1708068632257,-467.08,0.00035747,2]
[314198193,1708068632266,-467.08,0.00035842,2]
[314198194,1708068632275,-399.98,0.00035904,2]
[314198195,1708068632284,-467.08,0.00035937,2]
[314198196,1708068632293,-467.08,0.00036032,2]
[314198197,1708068632302,-220.77,0.00036064,2]
[314198198,1708068632312,-154.03343787,0.00036126,2]
[314198199,1708068632321,-467.08,0.00036127,2]
[314198200,1708068632330,-270.88,0.00036163,2]
[314198201,1708068632339,-467.08,0.00036222,2]
[314198202,1708068632348,-175.06,0.00036316,2]
[314198203,1708068632357,-467.08,0.00036317,2]
[314198204,1708068632367,-260.18,0.00036345,2]
[314198205,1708068632376,-467.08,0.00036411,2]
[314198206,1708068632386,-162.19176593,0.00036487,2]
[314198207,1708068632395,-195.73,0.00036709,2]
[314198208,1708068632405,-1000.0,0.00037052,2]
[314198209,1708068632414,-151.021624,0.00037198,25]
[314198210,1708068632423,-151.021624,0.00037398,24]
[314198211,1708068632433,-270.88,0.00037442,2]
[314198212,1708068632443,-151.021624,0.00037498,25]
[314198213,1708068632452,-154.03343787,0.00037541,2]
[314198214,1708068632461,-151.021624,0.00037798,25]
[314198215,1708068632470,-260.18,0.00037988,2]
[314198216,1708068632480,-162.19176593,0.00037991,2]
[314198217,1708068632489,-500.0,0.00038,2]
[314198218,1708068632499,-155.41,0.00038085,2]
[314198219,1708068632508,-399.98,0.00038167,2]
[314198220,1708068632517,-151.021624,0.00038198,26]
[314198221,1708068632526,-363.29869889,0.00038256,8]
[314198222,1708068632540,-37394.0301,0.00038256,2]
[314198223,1708068632551,-153.64,0.00038356,2]
[314198224,1708068632560,-947.77,0.00038356,15]
[314198225,1708068632570,-155.41,0.00038357,2]
[314198226,1708068632579,-1110.87138496,0.00038383,3]
[314198227,1708068632589,-1109.87033403,0.00038393,7]
[314198228,1708068632598,-151.021624,0.00038398,27]
[314198229,1708068632607,-161.75592261,0.00038399,3]
[314198230,1708068632617,-161.75592261,0.00038399,3]
[314198231,1708068632628,-154.0473719,0.00038399,3]
[314198232,1708068632638,-206.0,0.00038491,2]
[314198233,1708068632649,-151.021624,0.00038498,26]
[314198234,1708068632658,-155.41,0.00038629,2]
[314198235,1708068632667,-1154.10980387,0.00038694,4]
[314198236,1708068632676,-1239.0576,0.00038694,2]
[314198237,1708068632686,-150.0,0.000387,2]
[314198238,1708068632695,-270.88,0.00038721,2]
[314198239,1708068632704,-151.021624,0.00038798,26]
[314198240,1708068632714,-155.41,0.00038901,2]
[314198241,1708068632724,-154.03343787,0.00038957,2]
[314198242,1708068632733,-1000.0,0.00039,120]
[314198243,1708068632742,-285.0,0.0003911,2]
[314198244,1708068632752,-363.29869889,0.00039148,9]
[314198245,1708068632761,-155.41,0.00039173,2]
[314198246,1708068632770,-151.021624,0.00039198,27]
[314198247,1708068632790,-1000.0,0.00039346,2]
[314198248,1708068632801,-151.021518,0.00039348,21]
[314198249,1708068632811,-3000.0,0.0003937,2]
[314198250,1708068632821,-151.021624,0.00039398,27]
[314198251,1708068632831,-151.021518,0.00039398,20]
[314198252,1708068632841,-3684.83,0.00039412,5]
[314198253,1708068632850,-3557.21,0.00039429,5]
[314198254,1708068632860,-155.41,0.00039445,2]
[314198255,1708068632870,-3566.24,0.00039447,5]
[314198256,1708068632879,-3565.73,0.00039466,5]
[314198257,1708068632889,-5000.0,0.0003948,7]
[314198258,1708068632899,-162.19176593,0.00039495,2]
[314198259,1708068632910,-151.021624,0.00039498,27]
[314198260,1708068632920,-1000.0,0.000395,2]
[314198261,1708068632929,-3000.0,0.0003959,2]
[314198262,1708068632939,-260.18,0.00039632,2]
[314198263,1708068632948,-3000.0,0.0003968,2]
[314198264,1708068632958,-155.41,0.00039717,2]
[314198265,1708068632968,-151.021624,0.00039798,27]
[314198266,1708068632977,-150.0,0.000398,41]
[314198267,1708068632987,-152.45,0.000398,3]
[314198268,1708068632998,-152.45,0.000398,3]
[314198269,1708068633008,-152.45,0.000398,3]
[314198270,1708068633018,-152.45,0.000398,3]
[314198271,1708068633028,-152.45,0.000398,3]
[314198272,1708068633038,-155.41,0.00039989,2]
[314198273,1708068633047,-3000.0,0.0003999,2]
[314198274,1708068633057,-270.88,0.0004,2]
[314198275,1708068633067,-1000.0,0.0004,40]
[314198276,1708068633077,-164.67,0.00040007,2]
[314198277,1708068633086,-363.29869889,0.0004004,9]
[314198278,1708068633095,-195.73,0.00040046,2]
[314198279,1708068633104,-151.021624,0.00040048,26]
[314198280,1708068633114,-173.73,0.00040048,2]
[314198281,1708068633123,-150.0,0.000401,2]
[314198282,1708068633132,-150.0,0.000401,2]
[314198283,1708068633142,-151.021624,0.00040148,24]
[314198284,1708068633152,-151.021624,0.00040198,27]
[314198285,1708068633161,-151.021624,0.00040248,24]
[314198286,1708068633170,-382.3257305,0.00040248,12]
[314198287,1708068633180,-155.41,0.00040261,2]
[314198288,1708068633189,-3000.0,0.000403,3]
[314198289,1708068633199,-151.021624,0.00040348,24]
[314198290,1708068633209,-154.03343787,0.00040372,2]
[314198291,1708068633219,-151.021624,0.00040398,27]
[314198292,1708068633228,-399.98,0.00040431,2]
[314198293,1708068633237,-151.021624,0.00040448,24]
[314198294,1708068633248,-1500.0,0.0004046,2]
[314198295,1708068633259,-151.021624,0.00040498,27]
[314198296,1708068633269,-152.45,0.000405,4]
[314198297,1708068633278,-152.45,0.000405,4]
[314198298,1708068633288,-152.45,0.000405,4]
[314198299,1708068633297,-152.45,0.000405,4]
[314198300,1708068633306,-152.45,0.000405,4]
[314198301,1708068633319,-155.41,0.00040534,2]
[314198302,1708068633328,-151.021624,0.00040548,24]
[314198303,1708068633338,-1500.0,0.00040584,2]
[314198304,1708068633348,-200.0,0.00040616,10]
[314198305,1708068633357,-3000.0,0.0004062,5]
[314198306,1708068633366,-150.0,0.00040648,2]
[314198307,1708068633376,-151.021624,0.00040648,24]
[314198308,1708068633385,-1245.02714321,0.00040648,2]
[314198309,1708068633395,-150.0,0.00040659,2]
[314198310,1708068633405,-150.0,0.00040674,2]
[314198311,1708068633595,-150.0,0.0004072,2]
[314198312,1708068633606,-156.0,0.00040744,7]
[314198313,1708068633615,-151.021624,0.00040748,25]
[314198314,1708068633624,-151.021624,0.00040798,31]
[314198315,1708068633635,-155.41,0.00040806,2]
[314198316,1708068633644,-151.021624,0.00040848,25]
[314198317,1708068633653,-100000.0,0.0004087,2]
[314198318,1708068633662,-156.0,0.00040881,7]
[314198319,1708068633671,-181.13862195,0.00040887,2]
[314198320,1708068633681,-316.3967,0.0004089,2]
[314198321,1708068633691,-363.29869889,0.00040932,10]
[314198322,1708068633700,-151.021624,0.00040948,25]
[314198323,1708068633710,-555.61315312,0.00040948,2]
[314198324,1708068633720,-2000.0,0.0004097,7]
[314198325,1708068633730,-200.0,0.0004097,7]
[314198326,1708068633739,-256.0,0.00040973,30]
[314198327,1708068633749,-74217.0286415,0.00040975,6]
[314198328,1708068633759,-257.68056426,0.0004098,2]
[314198329,1708068633768,-200.0,0.00040987,22]
[314198330,1708068633777,-200.0,0.00040987,23]
[314198331,1708068633786,-200.0,0.00040987,24]
[314198332,1708068633795,-74217.0286415,0.0004099,6]
[314198333,1708068633805,-4836.21897542,0.00040994,15]
[314198334,1708068633814,-154.62524897,0.00040994,10]
[314198335,1708068633824,-178.0856967,0.00040994,2]
[314198336,1708068633833,-173.20838083,0.00040995,15]
[314198337,1708068633843,-5000.0,0.00040995,3]
[314198338,1708068633852,-25421.5051,0.00040995,5]
[314198339,1708068633862,-162.19176593,0.00041,3]
[314198340,1708068633871,-733.00764866,0.00041,10]
[314198345,1708068634172,-1169.53619494,0.00041,10]
[314198348,1708068634183,-2087.58882729,0.00041,10]
[314198350,1708068634198,-1454.4138098,0.00041,10]
[314198379,1708068637506,-848.26710872,0.00040925,10]
[314198380,1708068637563,-151.73289128,0.00040925,10]
[314198381,1708068637573,-219.0,0.00040973,30]
[314198382,1708068637583,-329.26710872,0.00041,10]
[314198383,1708068637674,-994.18355152,0.00041,10]
[314198384,1708068637685,-24983.27215563,0.00041,10]
[314198396,1708068639999,-523.270036,0.00041,10]
[314198397,1708068640111,-660.0,0.00041,10]
[314198398,1708068640227,-47065.46066744,0.00041,10]
[314198399,1708068640238,-810.37,0.00041,30]
[314198400,1708068640247,-810.37,0.00041,30]
[314198401,1708068640257,-1152.61027802,0.00041,10]
[314198402,1708068640267,-27231.9498,0.00041,120]
[314198403,1708068640277,-6000.0,0.00041,2]
[314198404,1708068640286,-7795.0052981,0.00041,2]
[314198405,1708068640295,-150.0,0.00041,2]
[314198406,1708068640305,-628.216203,0.00041,2]
[314198407,1708068640314,-154.69670256,0.00041,20]
[314198408,1708068640324,-187.49007004,0.00041,2]
[314198409,1708068640333,-156.0,0.00041018,7]
[314198410,1708068640343,-952.508,0.00041024,2]
[314198411,1708068640353,-345.425,0.00041024,2]
[314198412,1708068640362,-450.735,0.00041024,2]
[314198413,1708068640372,-1000.0,0.00041036,10]
[314198414,1708068640381,-800.0,0.00041037,15]
[314198415,1708068640391,-200.0,0.00041037,20]
[314198416,1708068640401,-150.0,0.00041039,2]
[314198417,1708068640411,-151.021624,0.00041048,26]
[314198418,1708068640420,-74217.0286415,0.00041065,7]
[314198419,1708068640430,-200.0,0.00041072,15]
[314198420,1708068640439,-74217.0286415,0.00041075,7]
[314198421,1708068640449,-155.41,0.00041078,2]
[314198422,1708068640459,-12145.94822195,0.00041085,3]
[314198423,1708068640468,-4502.40189395,0.00041085,7]
[314198424,1708068640979,-716.49533957,0.00041085,7]
[314198425,1708068640992,-1569.87641653,0.00041085,7]
[314198426,1708068641005,-618.48491259,0.00041085,7]
[314198427,1708068641016,-1329.19833626,0.00041085,7]
[314198428,1708068641028,-11353.21078173,0.00041085,7]
[314198429,1708068641040,-9033.9208142,0.00041085,7]
[314198437,1708068642423,-431.23497344,0.00041085,7]
[314198438,1708068644370,-2589.4382,0.00041085,7]
[314198439,1708068644428,-3558.23571273,0.00041085,7]
[314198448,1708068645439,-3399.72725505,0.00041085,7]
[314198461,1708068645697,-35114.80400545,0.00041085,7]
[314198462,1708068645707,-7480.67069229,0.00041093,4]
[314198463,1708068645717,-914.51,0.00041094,7]
[314198464,1708068645727,-500.0,0.00041095,30]
[314198465,1708068645736,-490.79763394,0.00041095,30]
[314198466,1708068645746,-500.0,0.00041095,30]
[314198467,1708068645755,-586.38,0.00041095,30]
[314198468,1708068645765,-500.0,0.00041095,30]
[314198469,1708068645775,-500.0,0.00041095,30]
[314198470,1708068645784,-500.0,0.00041095,30]
[314198471,1708068645793,-500.0,0.00041095,30]
[314198472,1708068645803,-508.40945324,0.00041095,30]
[314198473,1708068645813,-500.0,0.00041095,30]
[314198475,1708068645823,-500.0,0.00041095,30]
[314198476,1708068645833,-500.0,0.00041095,30]
[314198478,1708068645843,-500.0,0.00041095,30]
[314198480,1708068645852,-517.37972981,0.00041095,30]
[314198481,1708068645861,-500.0,0.00041095,30]
[314198482,1708068645870,-506.40270873,0.00041095,30]
[314198483,1708068645880,-500.0,0.00041095,30]
[314198484,1708068645889,-500.0,0.00041095,30]
[314198485,1708068645898,-522.04631991,0.00041095,30]
[314198486,1708068645908,-500.0,0.00041095,30]
[314198487,1708068645917,-500.0,0.00041095,30]
[314198488,1708068645926,-510.48847941,0.00041095,30]
[314198489,1708068645936,-469.77976869,0.00041095,30]
[314198490,1708068645945,-430.75682701,0.00041095,30]
[314198491,1708068645955,-506.58060263,0.00041095,30]
[314198492,1708068645964,-500.0,0.00041095,30]
[314198493,1708068645973,-500.0,0.00041095,30]
[314198494,1708068645982,-500.0,0.00041095,30]
[314198495,1708068645991,-500.0,0.00041095,30]
[314198496,1708068646001,-500.0,0.00041095,30]
[314198497,1708068646011,-500.0,0.00041095,30]
[314198498,1708068646020,-500.0,0.00041095,30]
[314198499,1708068646029,-512.22557376,0.00041095,30]
[314198500,1708068646038,-500.0,0.00041095,30]
[314198501,1708068646047,-500.0,0.00041095,30]
[314198502,1708068646057,-500.0,0.00041095,30]
[314198503,1708068646066,-500.0,0.00041095,30]
[314198504,1708068646075,-500.0,0.00041095,2]
[314198505,1708068646084,-520.08,0.00041095,30]
[314198506,1708068646094,-500.0,0.00041095,30]
[314198507,1708068646103,-500.0,0.00041095,30]
[314198508,1708068646112,-170.23344596,0.00041095,30]
[314198509,1708068646121,-500.0,0.00041095,30]
[314198510,1708068646131,-503.76228321,0.00041095,30]
[314198511,1708068646140,-500.0,0.00041095,30]
[314198512,1708068646149,-554.36751268,0.00041095,30]
[314198513,1708068646159,-500.0,0.00041095,30]
[314198514,1708068646169,-500.0,0.00041095,30]
[314198515,1708068646178,-522.10874906,0.00041095,30]
[314198516,1708068646188,-500.0,0.00041095,30]
[314198517,1708068646197,-500.0,0.00041095,30]
[314198518,1708068646206,-511.68903032,0.00041095,30]
[314198519,1708068646215,-352.00356474,0.00041095,30]
[314198520,1708068646224,-535.12154855,0.00041095,30]
[314198521,1708068646234,-500.0,0.00041095,30]
[314198522,1708068646245,-500.0,0.00041095,30]
[314198523,1708068646254,-649.06,0.00041095,30]
[314198524,1708068646264,-500.0,0.00041095,30]
[314198525,1708068646273,-500.0,0.00041095,30]
[314198526,1708068646282,-500.0,0.00041095,30]
[314198527,1708068646291,-500.0,0.00041095,30]
[314198528,1708068646325,-500.0,0.00041095,30]
[314198529,1708068646334,-500.0,0.00041095,30]
[314198530,1708068646343,-500.0,0.00041095,30]
[314198531,1708068646353,-500.0,0.00041095,30]
[314198532,1708068646362,-259.40546528,0.00041095,30]
[314198533,1708068646370,-500.0,0.00041095,30]
[314198534,1708068646379,-500.0,0.00041095,30]
[314198535,1708068646389,-500.0,0.00041095,30]
[314198536,1708068646398,-510.50519507,0.00041095,30]
[314198537,1708068646407,-500.0,0.00041095,30]
[314198538,1708068646416,-500.0,0.00041095,30]
[314198539,1708068646425,-500.0,0.00041095,30]
[314198540,1708068646434,-520.90407074,0.00041095,30]
[314198541,1708068646443,-500.0,0.00041095,30]
[314198542,1708068646452,-9489.21464383,0.00041095,3]
[314198543,1708068646461,-500.0,0.00041095,30]
[314198544,1708068646470,-500.0,0.00041095,30]
[314198545,1708068646479,-500.0,0.00041095,30]
[314198546,1708068646488,-500.0,0.00041095,30]
[314198547,1708068646497,-500.0,0.00041095,30]
[314198548,1708068646506,-500.0,0.00041095,30]
[314198549,1708068646515,-500.0,0.00041095,30]
[314198550,1708068646524,-500.0,0.00041095,30]
[314198551,1708068646533,-500.0,0.00041095,30]
[314198552,1708068646549,-513.33092279,0.00041095,30]
[314198553,1708068646558,-500.0,0.00041095,30]
[314198554,1708068646567,-500.0,0.00041095,30]
[314198555,1708068646576,-577.47440427,0.00041095,30]
[314198556,1708068646585,-500.0,0.00041095,30]
[314198557,1708068646595,-500.0,0.00041095,30]
[314198558,1708068646604,-514.60449211,0.00041095,30]
[314198559,1708068646613,-500.0,0.00041095,30]
[314198560,1708068646623,-500.0,0.00041095,30]
[314198561,1708068646632,-500.0,0.00041095,30]
[314198562,1708068646641,-533.23128567,0.00041095,30]
[314198563,1708068646650,-544.22172317,0.00041095,30]
[314198564,1708068646659,-532.56009522,0.00041095,30]
[314198565,1708068646668,-511.0618707,0.00041095,30]
[314198566,1708068646677,-544.39126634,0.00041095,30]
[314198567,1708068646686,-500.0,0.00041095,30]
[314198568,1708068646695,-500.0,0.00041095,30]
[314198569,1708068646705,-500.0,0.00041095,30]
[314198570,1708068646713,-514.85348576,0.00041095,30]
[314198571,1708068646723,-500.0,0.00041095,30]
[314198572,1708068646732,-500.0,0.00041095,30]
[314198573,1708068646741,-500.0,0.00041095,30]
[314198574,1708068646750,-507.51079767,0.00041095,30]
[314198575,1708068646759,-500.0,0.00041095,30]
[314198576,1708068646769,-500.0,0.00041095,30]
[314198577,1708068646778,-546.76664595,0.00041095,30]
[314198578,1708068646787,-222.44595993,0.00041095,30]
[314198579,1708068646797,-553.06707541,0.00041095,30]
[314198580,1708068646807,-505.99345344,0.00041095,30]
[314198581,1708068646816,-500.0,0.00041095,30]
[314198582,1708068646825,-555.52024245,0.00041095,30]
[314198583,1708068646834,-500.0,0.00041095,30]
[314198584,1708068646843,-519.08113615,0.00041095,30]
[314198585,1708068646853,-500.0,0.00041095,30]
[314198586,1708068646900,-513.15890486,0.00041095,30]
[314198587,1708068646909,-513.79848311,0.00041095,30]
[314198588,1708068646918,-519.61935841,0.00041095,30]
[314198589,1708068646928,-532.06579569,0.00041095,30]
[314198590,1708068646938,-549.62792921,0.00041095,30]
[314198591,1708068646947,-500.0,0.00041095,30]
[314198592,1708068646956,-500.0,0.00041095,30]
[314198593,1708068646966,-542.66902943,0.00041095,30]
[314198594,1708068646975,-500.0,0.00041095,30]
[314198595,1708068646984,-513.06547637,0.00041095,30]
[314198596,1708068646993,-500.0,0.00041095,30]
[314198597,1708068647003,-512.96650583,0.00041095,6]
[314198598,1708068647013,-500.0,0.00041095,30]
[314198599,1708068647022,-500.0,0.00041095,30]
[314198600,1708068647032,-525.03686703,0.00041095,30]
[314198601,1708068647041,-500.0,0.00041095,30]
[314198602,1708068647051,-548.5367111,0.00041095,30]
[314198603,1708068647059,-500.0,0.00041095,30]
[314198604,1708068647069,-500.0,0.00041095,30]
[314198605,1708068647078,-500.0,0.00041095,30]
[314198606,1708068647087,-500.0,0.00041095,30]
[314198607,1708068647097,-500.0,0.00041095,30]
[314198608,1708068647107,-1000.0,0.00041095,2]
[314198609,1708068647118,-500.0,0.00041095,30]
[314198610,1708068647127,-500.0,0.00041095,30]
[314198611,1708068647136,-500.0,0.00041095,30]
[314198612,1708068647145,-500.0,0.00041095,30]
[314198613,1708068647155,-500.0,0.00041095,30]
[314198614,1708068647165,-500.0,0.00041095,30]
[314198615,1708068647174,-500.0,0.00041095,30]
[314198616,1708068647183,-500.0,0.00041095,30]
[314198617,1708068647193,-500.0,0.00041095,30]
[314198618,1708068647202,-500.0,0.00041095,30]
[314198619,1708068647215,-500.0,0.00041095,30]
[314198620,1708068647224,-500.0,0.00041095,30]
[314198621,1708068647233,-500.0,0.00041095,7]
[314198622,1708068647243,-500.0,0.00041095,30]
[314198623,1708068647252,-515.8690404,0.00041095,7]
[314198624,1708068647262,-500.0,0.00041095,30]
[314198625,1708068647271,-500.0,0.00041095,30]
[314198626,1708068647280,-500.0,0.00041095,30]
[314198627,1708068647289,-150.0,0.00041095,30]
[314198628,1708068647299,-500.0,0.00041095,30]
[314198629,1708068647308,-500.0,0.00041095,30]
[314198630,1708068647317,-500.0,0.00041095,30]
[314198631,1708068647326,-482.26720528,0.00041095,30]
[314198632,1708068647335,-500.0,0.00041095,30]
[314198633,1708068647344,-500.0,0.00041095,30]
[314198634,1708068647353,-230.40317915,0.00041095,30]
[314198635,1708068647362,-500.0,0.00041095,30]
[314198636,1708068647371,-500.0,0.00041095,30]
[314198637,1708068647380,-454.4890015,0.00041095,30]
[314198638,1708068647389,-500.0,0.00041095,30]
[314198639,1708068647398,-402.78663686,0.00041095,30]
[314198640,1708068647407,-533.37503944,0.00041095,30]
[314198641,1708068647416,-500.0,0.00041095,30]
[314198642,1708068647426,-500.0,0.00041095,30]
[314198643,1708068647435,-500.0,0.00041095,30]
[314198644,1708068647444,-500.0,0.00041095,30]
[314198645,1708068647454,-500.0,0.00041095,30]
[314198646,1708068647463,-512.2726976,0.00041095,30]
[314198647,1708068647473,-500.0,0.00041095,30]
[314198648,1708068647482,-500.0,0.00041095,30]
[314198649,1708068647491,-500.0,0.00041095,30]
[314198650,1708068647502,-278.0952045,0.00041095,30]
[314198651,1708068647512,-500.0,0.00041095,30]
[314198652,1708068647521,-223.62467067,0.00041095,30]
[314198653,1708068647532,-500.0,0.00041095,30]
[314198654,1708068647545,-600.0,0.00041095,30]
[314198655,1708068647554,-500.0,0.00041095,30]
[314198656,1708068647564,-500.0,0.00041095,30]
[314198657,1708068647573,-500.0,0.00041095,30]
[314198658,1708068647585,-500.0,0.00041095,30]
[314198659,1708068647594,-423.49153502,0.00041095,30]
[314198660,1708068647605,-557.33570478,0.00041095,30]
[314198661,1708068647615,-500.0,0.00041095,30]
[314198662,1708068647625,-500.0,0.00041095,30]
[314198663,1708068647635,-500.0,0.00041095,7]
[314198664,1708068647645,-151.0,0.00041095,7]
[314198665,1708068647655,-500.0,0.00041095,30]
[314198666,1708068647665,-500.0,0.00041095,30]
[314198667,1708068647678,-500.0,0.00041095,30]
[314198668,1708068647687,-519.65590699,0.00041095,30]
[314198669,1708068647697,-1000.0,0.00041095,7]
[314198670,1708068647707,-532.69230116,0.00041095,30]
[314198671,1708068647716,-500.0,0.00041095,30]
[314198672,1708068647726,-934.78,0.00041095,7]
[314198673,1708068647736,-500.0,0.00041095,30]
[314198674,1708068647745,-500.0,0.00041095,30]
[314198675,1708068647755,-500.0,0.00041095,30]
[314198676,1708068647766,-500.0,0.00041095,30]
[314198677,1708068647775,-500.0,0.00041095,30]
[314198678,1708068647785,-500.0,0.00041095,30]
[314198679,1708068647794,-500.0,0.00041095,30]
[314198680,1708068647804,-500.0,0.00041095,30]
[314198681,1708068647813,-500.0,0.00041095,30]
[314198682,1708068647822,-500.0,0.00041095,30]
[314198683,1708068647832,-500.0,0.00041095,30]
[314198684,1708068647841,-500.0,0.00041095,30]
[314198685,1708068647850,-500.0,0.00041095,30]
[314198686,1708068647860,-787.45,0.00041095,30]
[314198687,1708068647869,-508.9142918,0.00041095,30]
[314198688,1708068647879,-500.0,0.00041095,30]
[314198689,1708068647888,-504.27359673,0.00041095,30]
[314198690,1708068647898,-500.0,0.00041095,30]
[314198691,1708068647908,-500.0,0.00041095,30]
[314198692,1708068647917,-500.0,0.00041095,30]
[314198693,1708068647927,-500.0,0.00041095,30]
[314198694,1708068647936,-500.0,0.00041095,30]
[314198695,1708068647945,-500.0,0.00041095,30]
[314198696,1708068647955,-500.0,0.00041095,30]
[314198697,1708068647965,-500.0,0.00041095,30]
[314198698,1708068647975,-200.66,0.00041095,30]
[314198699,1708068647985,-500.0,0.00041095,30]
[314198700,1708068647995,-500.0,0.00041095,30]
[314198701,1708068648005,-500.0,0.00041095,30]
[314198702,1708068648016,-500.0,0.00041095,30]
[314198703,1708068648026,-500.0,0.00041095,30]
[314198704,1708068648036,-565.95550692,0.00041095,30]
[314198705,1708068648046,-500.0,0.00041095,30]
[314198706,1708068648056,-225.2773919,0.00041095,30]
[314198707,1708068648066,-610.08,0.00041095,30]
[314198708,1708068648075,-500.0,0.00041095,30]
[314198709,1708068648085,-500.0,0.00041095,30]
[314198710,1708068648094,-500.0,0.00041095,30]
[314198711,1708068648104,-500.0,0.00041095,30]
[314198712,1708068648113,-500.0,0.00041095,30]
[314198713,1708068648122,-500.0,0.00041095,30]
[314198714,1708068648132,-500.0,0.00041095,30]
[314198715,1708068648141,-500.0,0.00041095,30]
[314198716,1708068648150,-500.0,0.00041095,30]
[314198717,1708068648160,-500.0,0.00041095,30]
[314198718,1708068648170,-500.0,0.00041095,30]
[314198719,1708068648179,-500.0,0.00041095,30]
[314198720,1708068648189,-500.0,0.00041095,30]
[314198721,1708068648199,-500.0,0.00041095,30]
[314198722,1708068648209,-500.0,0.00041095,30]
[314198723,1708068648218,-500.0,0.00041095,30]
[314198724,1708068648228,-500.0,0.00041095,30]
[314198725,1708068648237,-500.0,0.00041095,30]
[314198726,1708068648246,-500.0,0.00041095,30]
[314198727,1708068648256,-500.0,0.00041095,30]
[314198728,1708068648266,-500.0,0.00041095,30]
[314198729,1708068648275,-500.0,0.00041095,30]
[314198730,1708068648285,-3007.01,0.00041095,30]